{"text_format":"1","workbook":"xlsx","n_sheets":3,"sheets":["Orçamento Básico","Cronograma","BDI"],"not_rendered":{"charts":0,"images":2,"macros":1,"external_links":0,"defined_names":3,"comments":0,"pivot_tables":0},"unopened":[],"bounds":{"document_bytes":16777216,"sheet_cells":100000,"rows_first":2000,"rows_last":500,"rows_between":2000,"halvings":0,"cell_chars":16384,"cell_head_chars":4096},"cells_cut":0,"cells_raw":0,"read":"whole","date_system":"1900"}

{"sheet":"Orçamento Básico","index":0,"n_rows":250,"n_cols":10,"rows_kept":250,"cut":false,"hidden":false,"merged":[[244,8,244,9],[244,4,244,7],[19,6,19,8],[230,7,230,8],[232,2,232,9],[234,7,234,8],[237,2,237,9],[239,7,239,8],[210,2,210,9],[216,7,216,8],[219,2,219,9],[224,7,224,8],[226,2,226,9],[201,7,201,8],[203,2,203,9],[205,7,205,8],[208,6,208,8],[185,6,185,8],[187,2,187,9],[193,7,193,8],[196,2,196,9],[170,7,170,8],[173,2,173,9],[178,7,178,8],[180,2,180,9],[182,7,182,8],[144,2,144,9],[154,7,154,8],[157,2,157,9],[162,7,162,8],[164,2,164,9],[138,7,138,8],[108,2,108,9],[110,7,110,8],[142,6,142,8],[129,7,129,8],[131,2,131,9],[134,7,134,8],[136,2,136,9],[113,6,113,8],[115,2,115,9],[121,7,121,8],[124,2,124,9],[92,7,92,8],[95,2,95,9],[100,7,100,8],[102,2,102,9],[106,7,106,8],[86,2,86,9],[50,2,50,9],[61,7,61,8],[75,7,75,8],[78,2,78,9],[80,7,80,8],[63,2,63,9],[70,7,70,8],[72,2,72,9],[48,7,48,8],[20,2,20,9],[28,7,28,8],[30,2,30,9],[84,6,84,8],[1,3,1,9],[10,2,10,9],[3,2,3,6],[4,2,4,6],[16,7,16,8]]}
[]
[null,null,null,"PLANILHA ORÇAMENTÁRIA"]
[]
[null,"OBRA: ","PAVIMENTAÇÃO ASFALTICA EM CONCRETO BETUMINOSO USINADO A QUENTE",null,null,null,null,null,"DATA BASE:","2024-05-01"]
[null,"LOCAL:","VIAS URBANAS DO MUNICÍPIO DE BARÃO DE COTEGIPE/RS",null,null,null,null,null,"BDI:",{"$f":"BDI!B22","v":0.23649999999999999}]
[null,null,null,null,null,null,null,null,"BDI DIF.:"]
[null,null,null,null,null,null,null,null,"REGIME ADOTADO:","Onerado"]
[]
[null,"PAVIMENTAÇÃO DE VIAS URBANAS - SERVIÇOS INICIAIS E GERAIS"]
[null,"ITEM","REFERÊNCIA SINAPI","DESCRIÇÃO","UNID.","QUANT.","PREÇO UNIT.","BDI ADOTADO","PREÇO UNIT. C/ BDI","PREÇO TOTAL"]
[null,"1.1","SERVIÇOS INICIAIS E PRELIMINARES"]
[null,"1.1.1",10775,"LOCACAO DE CONTAINER 2,30 X 6,00 M, ALT. 2,50 M, COM 1 SANITARIO, PARA ESCRITORIO, COMPLETO, SEM DIVISORIAS INTERNAS (NAO INCLUI MOBILIZACAO/DESMOBILIZACAO)                                                                                                                                                                                                                                                                                                                                              ","MES   ",3,null,{"$f":"$J$5","v":0.23649999999999999},{"$f":"G12+G12*H12","v":0},{"$f":"ROUND(F12*I12,2)","v":0}]
[null,"1.1.2","CPU 04","SINALIZAÇÃO DE SEGURANÇA DA OBRA","OBRA",1,null,{"$f":"$J$5","v":0.23649999999999999},{"$f":"G13+G13*H13","v":0},{"$f":"ROUND(F13*I13,2)","v":0}]
[null,"1.1.3","CPU 01","ADMINISTRAÇÃO LOCAL DA OBRA","OBRA",1,null,{"$f":"$J$5","v":0.23649999999999999},{"$f":"G14+G14*H14","v":0},{"$f":"ROUND(F14*I14,2)","v":0}]
[null,"1.1.4","CPU 02","MOBILIZAÇÃO  DE EQUIPAMENTOS PARA PAVIMENTAÇÃO ASFÁLTICA","Obra",1,null,{"$f":"$J$5","v":0.23649999999999999},{"$f":"G15+G15*H15","v":0},{"$f":"ROUND(F15*I15,2)","v":0}]
[null,"1.1.5","CPU 03","LOCAÇÃO DE PAVIMENTAÇÃO","M",1386.8799999999999,null,{"$f":"$J$5","v":0.23649999999999999},{"$f":"G16+G16*H16","v":0},{"$f":"ROUND(F16*I16,2)","v":0}]
[null,null,null,null,null,null,null,"Total Item ",null,{"$f":"SUM(J12:J16)","v":0}]
[]
[]
[null,"1 - PAVIMENTAÇÃO DA RUA AUGUSTO BERTON",null,null,null,null,"Área de Pavimentação (m²)",null,null,3087.3]
[null,"1.2","TERRAPLENAGEM"]
[null,"1.2.1",98526,"REMOÇÃO DE RAÍZES REMANESCENTES DE TRONCO DE ÁRVORE COM DIÂMETRO MAIOR OU IGUAL A 0,20 M E MENOR QUE 0,40 M. AF_03/2024","UN",2,null,{"$f":"$J$5","v":0.23649999999999999},{"$f":"G22+G22*H22","v":0},{"$f":"ROUND(F22*I22,2)","v":0}]
[null,"1.2.2",98525,"LIMPEZA MECANIZADA DE CAMADA VEGETAL, VEGETAÇÃO E PEQUENAS ÁRVORES (DIÂMETRO DE TRONCO MENOR QUE 0,20 M), COM TRATOR DE ESTEIRAS. AF_03/2024","M2",568.1,null,{"$f":"$J$5","v":0.23649999999999999},{"$f":"G23+G23*H23","v":0},{"$f":"ROUND(F23*I23,2)","v":0}]
[null,"1.2.3",101114,"ESCAVAÇÃO HORIZONTAL EM SOLO DE 1A CATEGORIA COM TRATOR DE ESTEIRAS (100HP/LÂMINA: 2,19M3). AF_07/2020","M3",375.41,null,{"$f":"$J$5","v":0.23649999999999999},{"$f":"G24+G24*H24","v":0},{"$f":"ROUND(F24*I24,2)","v":0}]
[null,"1.2.4",100978,"CARGA, MANOBRA E DESCARGA DE SOLOS E MATERIAIS GRANULARES EM CAMINHÃO BASCULANTE 10 M³ - CARGA COM ESCAVADEIRA HIDRÁULICA (CAÇAMBA DE 1,20 M³ / 155 HP) E DESCARGA LIVRE (UNIDADE: M3). AF_07/2020","M3",709.5920000000001,null,{"$f":"$J$5","v":0.23649999999999999},{"$f":"G25+G25*H25","v":0},{"$f":"ROUND(F25*I25,2)","v":0}]
[null,"1.2.5",93589,"TRANSPORTE COM CAMINHÃO BASCULANTE DE 10 M³, EM VIA URBANA EM REVESTIMENTO PRIMÁRIO (UNIDADE: M3XKM). AF_07/2020","M3XKM",1419.1840000000002,null,0.23649999999999999,0,0]
[null,"1.2.6",100574,"ESPALHAMENTO DE MATERIAL COM TRATOR DE ESTEIRAS. AF_11/2019","M3",709.5920000000001,null,0.23649999999999999,0,0]
[null,"1.2.7",96385,"EXECUÇÃO E COMPACTAÇÃO DE ATERRO COM SOLO PREDOMINANTEMENTE ARGILOSO - EXCLUSIVE SOLO, ESCAVAÇÃO, CARGA E TRANSPORTE. AF_11/2019","M3",68.13,null,0.23649999999999999,0,0]
[null,null,null,null,null,null,null,"Total Item ",null,{"$f":"SUM(J22:J28)","v":0}]
[]
[null,"1.3","DRENAGEM"]
[null,"1.3.1","SICRO","REMOÇÃO DE TUBULAÇÃO","M",22,null,{"$f":"$J$5","v":0.23649999999999999},{"$f":"G32+G32*H32","v":0},{"$f":"ROUND(F32*I32,2)","v":0}]
[null,"1.3.2",90100,"ESCAVAÇÃO MECANIZADA DE VALA COM PROF. ATÉ 1,5 M (MÉDIA MONTANTE E JUSANTE/UMA COMPOSIÇÃO POR TRECHO), RETROESCAV. (0,26 M3), LARG. DE 0,8 M A 1,5 M, EM SOLO DE 1A CATEGORIA, EM LOCAIS COM ALTO NÍVEL DE INTERFERÊNCIA. AF_02/2021","M3",154.71,null,0.23649999999999999,0,0]
[null,"1.3.3",100978,"CARGA, MANOBRA E DESCARGA DE SOLOS E MATERIAIS GRANULARES EM CAMINHÃO BASCULANTE 10 M³ - CARGA COM ESCAVADEIRA HIDRÁULICA (CAÇAMBA DE 1,20 M³ / 155 HP) E DESCARGA LIVRE (UNIDADE: M3). AF_07/2020","M3",61.434903600000013,null,0.23649999999999999,0,0]
[null,"1.3.4",93589,"TRANSPORTE COM CAMINHÃO BASCULANTE DE 10 M³, EM VIA URBANA EM REVESTIMENTO PRIMÁRIO (UNIDADE: M3XKM). AF_07/2020","M3XKM",122.86980720000003,null,0.23649999999999999,0,0]
[null,"1.3.5",100574,"ESPALHAMENTO DE MATERIAL COM TRATOR DE ESTEIRAS. AF_11/2019","M3",61.434903600000013,null,0.23649999999999999,0,0]
[null,"1.3.6",101616,"PREPARO DE FUNDO DE VALA COM LARGURA MENOR QUE 1,5 M (ACERTO DO SOLO NATURAL). AF_08/2020","M2",103.14,null,0.23649999999999999,0,0]
[null,"1.3.7",96624,"LASTRO COM MATERIAL GRANULAR (PEDRA BRITADA N.2), APLICADO EM PISOS OU LAJES SOBRE SOLO, ESPESSURA DE *10 CM*. AF_01/2024","M3",10.314,null,0.23649999999999999,0,0]
[null,"1.3.8",100978,"CARGA, MANOBRA E DESCARGA DE SOLOS E MATERIAIS GRANULARES EM CAMINHÃO BASCULANTE 10 M³ - CARGA COM ESCAVADEIRA HIDRÁULICA (CAÇAMBA DE 1,20 M³ / 155 HP) E DESCARGA LIVRE (UNIDADE: M3). AF_07/2020","M3",13.408200000000001,null,0.23649999999999999,0,0]
[null,"1.3.9",95875,"TRANSPORTE COM CAMINHÃO BASCULANTE DE 10 M³, EM VIA URBANA PAVIMENTADA, DMT ATÉ 30 KM (UNIDADE: M3XKM). AF_07/2020","M3XKM",268.16399999999999,null,0.23649999999999999,0,0]
[null,"1.3.10",93382,"REATERRO MANUAL DE VALAS, COM COMPACTADOR DE SOLOS DE PERCUSSÃO. AF_08/2023","M3",110.82792599999999,null,0.23649999999999999,0,0]
[null,"1.3.11",92219,"TUBO DE CONCRETO PARA REDES COLETORAS DE ÁGUAS PLUVIAIS, DIÂMETRO DE 400 MM, JUNTA RÍGIDA, INSTALADO EM LOCAL COM ALTO NÍVEL DE INTERFERÊNCIAS - FORNECIMENTO E ASSENTAMENTO. AF_03/2024","M",21,null,0.23649999999999999,0,0]
[null,"1.3.12",92212,"TUBO DE CONCRETO PARA REDES COLETORAS DE ÁGUAS PLUVIAIS, DIÂMETRO DE 600 MM, JUNTA RÍGIDA, INSTALADO EM LOCAL COM BAIXO NÍVEL DE INTERFERÊNCIAS - FORNECIMENTO E ASSENTAMENTO. AF_03/2024","M",13,null,0.23649999999999999,0,0]
[null,"1.3.13","CPU 05","TUBULAÇÃO Ø600MM - PS1 ","M",47,null,0.23649999999999999,{"$f":"G44+G44*H44","v":0},{"$f":"ROUND(F44*I44,2)","v":0}]
[null,"1.3.14","CPU 06","CAIXA COLETORA BOCA-DE-LOBO MED. INT. 0,80X0,80M H ATÉ 1,50M - EM ALVENARIA, TAMPA DE CONCRETO","UNID",6,null,0.23649999999999999,{"$f":"G45+G45*H45","v":0},{"$f":"ROUND(F45*I45,2)","v":0}]
[null,"1.3.15",94273,"ASSENTAMENTO DE GUIA (MEIO-FIO) EM TRECHO RETO, CONFECCIONADA EM CONCRETO PRÉ-FABRICADO, DIMENSÕES 100X15X13X30 CM (COMPRIMENTO X BASE INFERIOR X BASE SUPERIOR X ALTURA). AF_01/2024","M",257,null,0.23649999999999999,0,0]
[null,"1.3.16",102737,"BOCA PARA BUEIRO SIMPLES TUBULAR D = 40 CM EM CONCRETO, ALAS COM ESCONSIDADE DE 0°, INCLUINDO FÔRMAS E MATERIAIS. AF_07/2021","UN",1,null,0.23649999999999999,0,0]
[null,"1.3.17",102738,"BOCA PARA BUEIRO SIMPLES TUBULAR D = 60 CM EM CONCRETO, ALAS COM ESCONSIDADE DE 0°, INCLUINDO FÔRMAS E MATERIAIS. AF_07/2021","UN",1,null,0.23649999999999999,0,0]
[null,null,null,null,null,null,null,"Total Item ",null,{"$f":"SUM(J32:J48)","v":0}]
[]
[null,"1.4","IMPLANTAÇÃO DE PAVIMENTO ASFALTICO - Trecho fim calçamento / Celso Longo (Suprimida a área da ponte)"]
[null,"1.4.1",100576,"REGULARIZAÇÃO E COMPACTAÇÃO DE SUBLEITO DE SOLO  PREDOMINANTEMENTE ARGILOSO. AF_11/2019","M2",1553.1,null,{"$f":"$J$5","v":0.23649999999999999},{"$f":"G52+G52*H52","v":0},{"$f":"ROUND(F52*I52,2)","v":0}]
[null,"1.4.2",96400,"EXECUÇÃO E COMPACTAÇÃO DE BASE E OU SUB BASE PARA PAVIMENTAÇÃO DE MACADAME SECO - EXCLUSIVE CARGA E TRANSPORTE. AF_11/2019","M3",279.55799999999999,null,0.23649999999999999,0,0]
[null,"1.4.3",96396,"EXECUÇÃO E COMPACTAÇÃO DE BASE E OU SUB BASE PARA PAVIMENTAÇÃO DE BRITA GRADUADA SIMPLES - EXCLUSIVE CARGA E TRANSPORTE. AF_11/2019","M3",217.434,null,0.23649999999999999,0,0]
[null,"1.4.4",100978,"CARGA, MANOBRA E DESCARGA DE SOLOS E MATERIAIS GRANULARES EM CAMINHÃO BASCULANTE 10 M³ - CARGA COM ESCAVADEIRA HIDRÁULICA (CAÇAMBA DE 1,20 M³ / 155 HP) E DESCARGA LIVRE (UNIDADE: M3). AF_07/2020","M3",646.08960000000002,null,0.23649999999999999,0,0]
[null,"1.4.5",95875,"TRANSPORTE COM CAMINHÃO BASCULANTE DE 10 M³, EM VIA URBANA PAVIMENTADA, DMT ATÉ 30 KM (UNIDADE: M3XKM). AF_07/2020","M3XKM",12921.792000000001,null,0.23649999999999999,0,0]
[null,"1.4.6","CPU 07","EXECUÇÃO DE IMPRIMAÇÃO COM ASFALTO DILUÍDO CM-30 INCLUSIVE TRANSPORTE DA EMULSÃO","M2",1553.1,null,0.23649999999999999,0,0]
[null,"1.4.7","CPU 08","PINTURA DE LIGAÇÃO COM EMULSÃO RR-2C - INCLUSIVE TRANSPORTE DA EMULSÃO","M2",1392.5,null,0.23649999999999999,0,0]
[null,"1.4.8","CPU 09","EXECUÇÃO DE PAVIMENTO COM APLICAÇÃO DE CONCRETO ASFALTICO - CBUQ - CAMADA DE ROLAMENTO - EXCLUSIVE CARGA E TRANSPORTE","M³",55.7,null,0.23649999999999999,0,0]
[null,"1.4.9",100986,"CARGA DE MISTURA ASFÁLTICA EM CAMINHÃO BASCULANTE 10 M³ (UNIDADE: M3). AF_07/2020","M3",72.410000000000011,null,{"$f":"$J$5","v":0.23649999999999999},{"$f":"G60+G60*H60","v":0},{"$f":"ROUND(F60*I60,2)","v":0}]
[null,"1.4.10",95875,"TRANSPORTE COM CAMINHÃO BASCULANTE DE 10 M³, EM VIA URBANA PAVIMENTADA, DMT ATÉ 30 KM (UNIDADE: M3XKM). AF_07/2020","M3XKM",1448.2000000000003,null,{"$f":"$J$5","v":0.23649999999999999},{"$f":"G61+G61*H61","v":0},{"$f":"ROUND(F61*I61,2)","v":0}]
[null,null,null,null,null,null,null,"Total Item",null,{"$f":"SUM(J52:J61)","v":0}]
[]
[null,"1.5","CAPEAMENTO ASFALTICO SOBRE PEDRA IRREGULAR"]
[null,"1.5.1","CPU 10","LIMPEZA, VARIÇÃO E LAVAGEM DA PISTA","M²",1072.06,null,{"$f":"$J$5","v":0.23649999999999999},{"$f":"G65+G65*H65","v":0},{"$f":"ROUND(F65*I65,2)","v":0}]
[null,"1.5.2","CPU 08","PINTURA DE LIGAÇÃO COM EMULSÃO RR-2C - INCLUSIVE TRANSPORTE DA EMULSÃO","M2",2144.12,null,0.23649999999999999,0,0]
[null,"1.5.3","CPU 09","EXECUÇÃO DE PAVIMENTO COM APLICAÇÃO DE CONCRETO ASFALTICO - CBUQ - CAMADA DE ROLAMENTO - EXCLUSIVE CARGA E TRANSPORTE","M³",32.161799999999999,null,0.23649999999999999,0,0]
[null,"1.5.4","CPU 09","EXECUÇÃO DE PAVIMENTO COM APLICAÇÃO DE CONCRETO ASFALTICO - CBUQ - CAMADA DE ROLAMENTO - EXCLUSIVE CARGA E TRANSPORTE","M³",42.882399999999997,null,0.23649999999999999,0,0]
[null,"1.5.5",100986,"CARGA DE MISTURA ASFÁLTICA EM CAMINHÃO BASCULANTE 10 M³ (UNIDADE: M3). AF_07/2020","M3",97.557459999999992,null,0.23649999999999999,0,0]
[null,"1.5.6",95875,"TRANSPORTE COM CAMINHÃO BASCULANTE DE 10 M³, EM VIA URBANA PAVIMENTADA, DMT ATÉ 30 KM (UNIDADE: M3XKM). AF_07/2020","M3XKM",1951.1491999999998,null,0.23649999999999999,{"$f":"G70+G70*H70","v":0},{"$f":"ROUND(F70*I70,2)","v":0}]
[null,null,null,null,null,null,null,"Total Item",null,{"$f":"SUM(J65:J70)","v":0}]
[]
[null,"1.6","SINALIZAÇÃO HORIZONTAL"]
[null,"1.6.1",102512,"PINTURA DE EIXO VIÁRIO SOBRE ASFALTO COM TINTA RETRORREFLETIVA A BASE DE RESINA ACRÍLICA COM MICROESFERAS DE VIDRO, APLICAÇÃO MECÂNICA COM DEMARCADORA AUTOPROPELIDA. AF_05/2021","M",159,null,{"$f":"$J$5","v":0.23649999999999999},{"$f":"G74+G74*H74","v":0},{"$f":"ROUND(F74*I74,2)","v":0}]
[null,"1.6.2",102509,"PINTURA DE FAIXA DE PEDESTRE OU ZEBRADA TINTA RETRORREFLETIVA A BASE DE RESINA ACRÍLICA COM MICROESFERAS DE VIDRO, E = 30 CM, APLICAÇÃO MANUAL. AF_05/2021","M2",72.8,null,0.23649999999999999,0,0]
[null,null,null,null,null,null,null,"Total Item",null,{"$f":"SUM(J74:J75)","v":0}]
[]
[]
[null,"1.7","SERVIÇOS FINAIS"]
[null,"1.7.1","CPU 11","LIMPEZA FINAL DE OBRA","M³",2464.81,null,{"$f":"$J$5","v":0.23649999999999999},{"$f":"G80+G80*H80","v":0},{"$f":"ROUND(F80*I80,2)","v":0}]
[null,null,null,null,null,null,null,"Total Item",null,{"$f":"SUM(J80:J80)","v":0}]
[null,null,null,null,null,"Valor Total Rua Augusto Berton",null,null,null,{"$f":"J81+J76+J71+J62+J49+J29","v":0}]
[]
[]
[null,"2 -PAVIMENTAÇÃO DA RUA CASEMIRO DE ABREU ",null,null,null,null,"Área de Pavimentação (m²)",null,null,3087.31]
[null,"ITEM","REFERÊNCIA SINAPI","DESCRIÇÃO","UNID.","QUANT.","PREÇO UNIT.","BDI ADOTADO","PREÇO UNIT. C/ BDI","PREÇO TOTAL"]
[null,"2.1","EXECUÇÃO DE CAMADA DE REPERFILAMENTO"]
[null,"2.1.1","CPU 10","LIMPEZA, VARIÇÃO E LAVAGEM DA PISTA","M²",3087.31,null,{"$f":"$J$5","v":0.23649999999999999},{"$f":"G88+G88*H88","v":0},{"$f":"ROUND(F88*I88,2)","v":0}]
[null,"2.1.2","CPU 08","PINTURA DE LIGAÇÃO COM EMULSÃO RR-2C - INCLUSIVE TRANSPORTE DA EMULSÃO","M2",3087.31,null,0.23649999999999999,{"$f":"G89+G89*H89","v":0},{"$f":"ROUND(F89*I89,2)","v":0}]
[null,"2.1.3","CPU 12","EXECUÇÃO DE PAVIMENTO COM APLICAÇÃO DE CONCRETO ASFALTICO - BINDER, CAMADA DE REPERFILAMENTO - EXCLUSIVE CARGA E TRANSPORTE","M³",154.3655,null,0.23649999999999999,{"$f":"G90+G90*H90","v":0},{"$f":"ROUND(F90*I90,2)","v":0}]
[null,"2.1.4",100986,"CARGA DE MISTURA ASFÁLTICA EM CAMINHÃO BASCULANTE 10 M³ (UNIDADE: M3). AF_07/2020","M3",200.67515,null,0.23649999999999999,0,0]
[null,"2.1.5",95875,"TRANSPORTE COM CAMINHÃO BASCULANTE DE 10 M³, EM VIA URBANA PAVIMENTADA, DMT ATÉ 30 KM (UNIDADE: M3XKM). AF_07/2020","M3XKM",4013.5030000000002,null,0.23649999999999999,0,0]
[null,null,null,null,null,null,null,"Total Item",null,{"$f":"SUM(J88:J92)","v":0}]
[]
[]
[null,"2.2","EXECUÇÃO DE CAMADA FINAL DE ROLAMENTO"]
[null,"2.2.1","CPU 08","PINTURA DE LIGAÇÃO COM EMULSÃO RR-2C - INCLUSIVE TRANSPORTE DA EMULSÃO","M2",3087.31,null,{"$f":"$J$5","v":0.23649999999999999},{"$f":"G97+G97*H97","v":0},{"$f":"ROUND(F97*I97,2)","v":0}]
[null,"2.2.2","CPU 09","EXECUÇÃO DE PAVIMENTO COM APLICAÇÃO DE CONCRETO ASFALTICO - CBUQ - CAMADA DE ROLAMENTO - EXCLUSIVE CARGA E TRANSPORTE","M³",92.619299999999996,null,0.23649999999999999,{"$f":"G98+G98*H98","v":0},{"$f":"ROUND(F98*I98,2)","v":0}]
[null,"2.2.3",100986,"CARGA DE MISTURA ASFÁLTICA EM CAMINHÃO BASCULANTE 10 M³ (UNIDADE: M3). AF_07/2020","M3",120.40509,null,0.23649999999999999,0,0]
[null,"2.2.4",95875,"TRANSPORTE COM CAMINHÃO BASCULANTE DE 10 M³, EM VIA URBANA PAVIMENTADA, DMT ATÉ 30 KM (UNIDADE: M3XKM). AF_07/2020","M3XKM",2408.1017999999999,null,0.23649999999999999,0,0]
[null,null,null,null,null,null,null,"Total Item",null,{"$f":"SUM(J97:J100)","v":0}]
[]
[null,"2.3","SINALIZAÇÃO HORIZONTAL"]
[null,"2.3.1",102512,"PINTURA DE EIXO VIÁRIO SOBRE ASFALTO COM TINTA RETRORREFLETIVA A BASE DE RESINA ACRÍLICA COM MICROESFERAS DE VIDRO, APLICAÇÃO MECÂNICA COM DEMARCADORA AUTOPROPELIDA. AF_05/2021","M",23.6784,null,{"$f":"$J$5","v":0.23649999999999999},{"$f":"G104+G104*H104","v":0},{"$f":"ROUND(F104*I104,2)","v":0}]
[null,"2.3.2",102512,"PINTURA DE EIXO VIÁRIO SOBRE ASFALTO COM TINTA RETRORREFLETIVA A BASE DE RESINA ACRÍLICA COM MICROESFERAS DE VIDRO, APLICAÇÃO MECÂNICA COM DEMARCADORA AUTOPROPELIDA. AF_05/2021","M",47.357999999999997,null,0.23649999999999999,{"$f":"G105+G105*H105","v":0},{"$f":"ROUND(F105*I105,2)","v":0}]
[null,"2.3.3",102509,"PINTURA DE FAIXA DE PEDESTRE OU ZEBRADA TINTA RETRORREFLETIVA A BASE DE RESINA ACRÍLICA COM MICROESFERAS DE VIDRO, E = 30 CM, APLICAÇÃO MANUAL. AF_05/2021","M2",71.8,null,0.23649999999999999,0,0]
[null,null,null,null,null,null,null,"Total Item",null,{"$f":"SUM(J104:J106)","v":0}]
[]
[null,"2.4","SERVIÇOS FINAIS"]
[null,"2.4.1","CPU 11","LIMPEZA FINAL DE OBRA","M³",3087.31,null,{"$f":"$J$5","v":0.23649999999999999},{"$f":"G110+G110*H110","v":0},{"$f":"ROUND(F110*I110,2)","v":0}]
[null,null,null,null,null,null,null,"Total Item",null,{"$f":"SUM(J109:J110)","v":0}]
[null,null,null,null,null,"Valor Total Rua Casemiro de Abreu",null,null,null,{"$f":"J111+J107+J101+J93","v":0}]
[]
[null,"3.0 - PAVIMENTAÇÃO DA RUA  SANTINA LONGO ",null,null,null,null,"Área de Pavimentação (m²)",null,null,656.68]
[null,"ITEM","REFERÊNCIA SINAPI","DESCRIÇÃO","UNID.","QUANT.","PREÇO UNIT.","BDI ADOTADO","PREÇO UNIT. C/ BDI","PREÇO TOTAL"]
[null,"3.1","EXECUÇÃO DE CAMADA DE REPERFILAMENTO"]
[null,"3.1.1","CPU 10","LIMPEZA, VARIÇÃO E LAVAGEM DA PISTA","M²",656.68,null,{"$f":"$J$5","v":0.23649999999999999},{"$f":"G117+G117*H117","v":0},{"$f":"ROUND(F117*I117,2)","v":0}]
[null,"3.1.2","CPU 08","PINTURA DE LIGAÇÃO COM EMULSÃO RR-2C - INCLUSIVE TRANSPORTE DA EMULSÃO","M2",656.68,null,0.23649999999999999,0,0]
[null,"3.1.3","CPU 12","EXECUÇÃO DE PAVIMENTO COM APLICAÇÃO DE CONCRETO ASFALTICO - BINDER, CAMADA DE REPERFILAMENTO - EXCLUSIVE CARGA E TRANSPORTE","M³",32.833999999999996,null,0.23649999999999999,0,0]
[null,"3.1.4",100986,"CARGA DE MISTURA ASFÁLTICA EM CAMINHÃO BASCULANTE 10 M³ (UNIDADE: M3). AF_07/2020","M3",42.684199999999997,null,0.23649999999999999,0,0]
[null,"3.1.5",95875,"TRANSPORTE COM CAMINHÃO BASCULANTE DE 10 M³, EM VIA URBANA PAVIMENTADA, DMT ATÉ 30 KM (UNIDADE: M3XKM). AF_07/2020","M3XKM",853.68399999999997,null,0.23649999999999999,0,0]
[null,null,null,null,null,null,null,"Total Item",null,{"$f":"SUM(J117:J121)","v":0}]
[]
[]
[null,"3.2","EXECUÇÃO DE CAMADA FINAL DE ROLAMENTO"]
[null,"3.2.1","CPU 08","PINTURA DE LIGAÇÃO COM EMULSÃO RR-2C - INCLUSIVE TRANSPORTE DA EMULSÃO","M2",656.68,null,{"$f":"$J$5","v":0.23649999999999999},{"$f":"G126+G126*H126","v":0},{"$f":"ROUND(F126*I126,2)","v":0}]
[null,"3.2.2","CPU 09","EXECUÇÃO DE PAVIMENTO COM APLICAÇÃO DE CONCRETO ASFALTICO - CBUQ - CAMADA DE ROLAMENTO - EXCLUSIVE CARGA E TRANSPORTE","M³",19.700399999999998,null,0.23649999999999999,0,0]
[null,"3.2.3",100986,"CARGA DE MISTURA ASFÁLTICA EM CAMINHÃO BASCULANTE 10 M³ (UNIDADE: M3). AF_07/2020","M3",25.610519999999998,null,0.23649999999999999,0,0]
[null,"3.2.4",95875,"TRANSPORTE COM CAMINHÃO BASCULANTE DE 10 M³, EM VIA URBANA PAVIMENTADA, DMT ATÉ 30 KM (UNIDADE: M3XKM). AF_07/2020","M3XKM",512.21039999999994,null,0.23649999999999999,0,0]
[null,null,null,null,null,null,null,"Total Item",null,{"$f":"SUM(J126:J129)","v":0}]
[]
[null,"3.3","SINALIZAÇÃO HORIZONTAL"]
[null,"3.3.1",102512,"PINTURA DE EIXO VIÁRIO SOBRE ASFALTO COM TINTA RETRORREFLETIVA A BASE DE RESINA ACRÍLICA COM MICROESFERAS DE VIDRO, APLICAÇÃO MECÂNICA COM DEMARCADORA AUTOPROPELIDA. AF_05/2021","M",6.2495999999999992,null,{"$f":"$J$5","v":0.23649999999999999},{"$f":"G133+G133*H133","v":0},{"$f":"ROUND(F133*I133,2)","v":0}]
[null,"3.3.2",102512,"PINTURA DE EIXO VIÁRIO SOBRE ASFALTO COM TINTA RETRORREFLETIVA A BASE DE RESINA ACRÍLICA COM MICROESFERAS DE VIDRO, APLICAÇÃO MECÂNICA COM DEMARCADORA AUTOPROPELIDA. AF_05/2021","M",7.0595999999999997,null,0.23649999999999999,0,0]
[null,null,null,null,null,null,null,"Total Item",null,{"$f":"SUM(J133:J134)","v":0}]
[]
[null,"3.4","SERVIÇOS FINAIS"]
[null,"3.4.1","CPU 11","LIMPEZA FINAL DE OBRA","M³",656.68,null,{"$f":"$J$5","v":0.23649999999999999},{"$f":"G138+G138*H138","v":0},{"$f":"ROUND(F138*I138,2)","v":0}]
[null,null,null,null,null,null,null,"Total Item",null,{"$f":"SUM(J137:J138)","v":0}]
[null,null,null,null,null,"Valor Total Rua Santina Longo",null,null,null,{"$f":"J139+J135+J130+J122","v":0}]
[]
[]
[null,"4.0 - RUA PORTO ALEGRE - CAPEAMENTO E REPAROS ESTRUTURAIS",null,null,null,null,"Área de Pavimentação (m²)",null,null,5531.8]
[null,"ITEM","REFERÊNCIA SINAPI","DESCRIÇÃO","UNID.","QUANT.","PREÇO UNIT.","BDI ADOTADO","PREÇO UNIT. C/ BDI","PREÇO TOTAL"]
[null,"4.1","REPAROS ESTRUTURAIS"]
[null,"4.4.1",101206,"ESCAVAÇÃO VERTICAL PARA  EDIFICAÇÃO, COM CARGA, DESCARGA E TRANSPORTE DE SOLO DE 1ª CATEGORIA, COM ESCAVADEIRA HIDRÁULICA (CAÇAMBA: 0,8 M³ / 111 HP), FROTA DE 3 CAMINHÕES BASCULANTES DE 14 M³, DMT ATÉ 1 KM E VELOCIDADE MÉDIA 14 KM/H. AF_05/2020","M3",31.200000000000003,null,{"$f":"$J$5","v":0.23649999999999999},{"$f":"G146+G146*H146","v":0},{"$f":"ROUND(F146*I146,2)","v":0}]
[null,"4.4.2",100576,"REGULARIZAÇÃO E COMPACTAÇÃO DE SUBLEITO DE SOLO  PREDOMINANTEMENTE ARGILOSO. AF_11/2019","M2",78,null,0.23649999999999999,0,0]
[null,"4.4.3",96400,"EXECUÇÃO E COMPACTAÇÃO DE BASE E OU SUB BASE PARA PAVIMENTAÇÃO DE MACADAME SECO - EXCLUSIVE CARGA E TRANSPORTE. AF_11/2019","M3",15.600000000000001,null,0.23649999999999999,0,0]
[null,"4.4.4",100978,"CARGA, MANOBRA E DESCARGA DE SOLOS E MATERIAIS GRANULARES EM CAMINHÃO BASCULANTE 10 M³ - CARGA COM ESCAVADEIRA HIDRÁULICA (CAÇAMBA DE 1,20 M³ / 155 HP) E DESCARGA LIVRE (UNIDADE: M3). AF_07/2020","M3",15.600000000000001,null,0.23649999999999999,0,0]
[null,"4.4.5",95875,"TRANSPORTE COM CAMINHÃO BASCULANTE DE 10 M³, EM VIA URBANA PAVIMENTADA, DMT ATÉ 30 KM (UNIDADE: M3XKM). AF_07/2020","M3XKM",312,null,0.23649999999999999,0,0]
[null,"4.4.6",101849,"RECOMPOSIÇÃO DE BASE E OU SUB-BASE PARA FECHAMENTO DE VALAS DE BRITA GRADUADA SIMPLES - INCLUSO RETIRADA E COLOCAÇÃO DO MATERIAL. AF_12/2020","M3",11.7,null,0.23649999999999999,0,0]
[null,"4.4.7",100978,"CARGA, MANOBRA E DESCARGA DE SOLOS E MATERIAIS GRANULARES EM CAMINHÃO BASCULANTE 10 M³ - CARGA COM ESCAVADEIRA HIDRÁULICA (CAÇAMBA DE 1,20 M³ / 155 HP) E DESCARGA LIVRE (UNIDADE: M3). AF_07/2020","M3",11.7,null,0.23649999999999999,0,0]
[null,"4.4.8",95875,"TRANSPORTE COM CAMINHÃO BASCULANTE DE 10 M³, EM VIA URBANA PAVIMENTADA, DMT ATÉ 30 KM (UNIDADE: M3XKM). AF_07/2020","M3XKM",234,null,0.23649999999999999,0,0]
[null,"4.4.9","CPU 07","EXECUÇÃO DE IMPRIMAÇÃO COM ASFALTO DILUÍDO CM-30 INCLUSIVE TRANSPORTE DA EMULSÃO","M2",78,null,0.23649999999999999,0,0]
[null,null,null,null,null,null,null,"Total Item",null,{"$f":"SUM(J146:J154)","v":0}]
[]
[]
[null,"4.2","REPERFILAMENTO SOBRE CAMADA DE REPARO"]
[null,"4.2.1","CPU 08","PINTURA DE LIGAÇÃO COM EMULSÃO RR-2C - INCLUSIVE TRANSPORTE DA EMULSÃO","M2",78,null,{"$f":"$J$5","v":0.23649999999999999},{"$f":"G159+G159*H159","v":0},{"$f":"ROUND(F159*I159,2)","v":0}]
[null,"4.2.2","CPU 09","EXECUÇÃO DE PAVIMENTO COM APLICAÇÃO DE CONCRETO ASFALTICO - CBUQ - CAMADA DE ROLAMENTO - EXCLUSIVE CARGA E TRANSPORTE","M³",2.34,null,0.23649999999999999,0,0]
[null,"4.2.3",100986,"CARGA DE MISTURA ASFÁLTICA EM CAMINHÃO BASCULANTE 10 M³ (UNIDADE: M3). AF_07/2020","M3",3.0419999999999998,null,0.23649999999999999,0,0]
[null,"4.2.4",95875,"TRANSPORTE COM CAMINHÃO BASCULANTE DE 10 M³, EM VIA URBANA PAVIMENTADA, DMT ATÉ 30 KM (UNIDADE: M3XKM). AF_07/2020","M3XKM",60.839999999999996,null,0.23649999999999999,0,0]
[null,null,null,null,null,null,null,"Total Item",null,{"$f":"SUM(J159:J162)","v":0}]
[]
[null,"4.3","EXECUÇÃO DE CAMADA FINAL DE ROLAMENTO"]
[null,"4.3.1","CPU 10","LIMPEZA, VARIÇÃO E LAVAGEM DA PISTA","M²",5531.8,null,{"$f":"$J$5","v":0.23649999999999999},{"$f":"G166+G166*H166","v":0},{"$f":"ROUND(F166*I166,2)","v":0}]
[null,"4.3.2","CPU 08","PINTURA DE LIGAÇÃO COM EMULSÃO RR-2C - INCLUSIVE TRANSPORTE DA EMULSÃO","M2",5609.8,null,{"$f":"$J$5","v":0.23649999999999999},{"$f":"G167+G167*H167","v":0},{"$f":"ROUND(F167*I167,2)","v":0}]
[null,"4.3.3","CPU 09","EXECUÇÃO DE PAVIMENTO COM APLICAÇÃO DE CONCRETO ASFALTICO - CBUQ - CAMADA DE ROLAMENTO - EXCLUSIVE CARGA E TRANSPORTE","M³",221.27200000000002,null,0.23649999999999999,{"$f":"G168+G168*H168","v":0},{"$f":"ROUND(F168*I168,2)","v":0}]
[null,"4.3.4",100986,"CARGA DE MISTURA ASFÁLTICA EM CAMINHÃO BASCULANTE 10 M³ (UNIDADE: M3). AF_07/2020","M3",287.65360000000004,null,0.23649999999999999,0,0]
[null,"4.3.5",95875,"TRANSPORTE COM CAMINHÃO BASCULANTE DE 10 M³, EM VIA URBANA PAVIMENTADA, DMT ATÉ 30 KM (UNIDADE: M3XKM). AF_07/2020","M3XKM",5753.072000000001,null,0.23649999999999999,0,0]
[null,null,null,null,null,null,null,"Total Item",null,{"$f":"SUM(J166:J170)","v":0}]
[]
[]
[null,"4.4","SINALIZAÇÃO HORIZONTAL"]
[null,"4.4.1",102512,"PINTURA DE EIXO VIÁRIO SOBRE ASFALTO COM TINTA RETRORREFLETIVA A BASE DE RESINA ACRÍLICA COM MICROESFERAS DE VIDRO, APLICAÇÃO MECÂNICA COM DEMARCADORA AUTOPROPELIDA. AF_05/2021","M",365,null,{"$f":"$J$5","v":0.23649999999999999},{"$f":"G175+G175*H175","v":0},{"$f":"ROUND(F175*I175,2)","v":0}]
[null,"4.4.2",102512,"PINTURA DE EIXO VIÁRIO SOBRE ASFALTO COM TINTA RETRORREFLETIVA A BASE DE RESINA ACRÍLICA COM MICROESFERAS DE VIDRO, APLICAÇÃO MECÂNICA COM DEMARCADORA AUTOPROPELIDA. AF_05/2021","M",733,null,0.23649999999999999,{"$f":"G176+G176*H176","v":0},{"$f":"ROUND(F176*I176,2)","v":0}]
[null,"4.4.3",102509,"PINTURA DE FAIXA DE PEDESTRE OU ZEBRADA TINTA RETRORREFLETIVA A BASE DE RESINA ACRÍLICA COM MICROESFERAS DE VIDRO, E = 30 CM, APLICAÇÃO MANUAL. AF_05/2021","M2",92.1,null,0.23649999999999999,0,0]
[null,"4.4.4",102509,"PINTURA DE FAIXA DE PEDESTRE OU ZEBRADA TINTA RETRORREFLETIVA A BASE DE RESINA ACRÍLICA COM MICROESFERAS DE VIDRO, E = 30 CM, APLICAÇÃO MANUAL. AF_05/2021","M2",74,null,0.23649999999999999,0,0]
[null,null,null,null,null,null,null,"Total Item",null,{"$f":"SUM(J175:J178)","v":0}]
[]
[null,"4.5","SERVIÇOS FINAIS"]
[null,"4.5.1","CPU 11","LIMPEZA FINAL DE OBRA","M³",5609.8,null,{"$f":"$J$5","v":0.23649999999999999},{"$f":"G182+G182*H182","v":0},{"$f":"ROUND(F182*I182,2)","v":0}]
[null,null,null,null,null,null,null,"Total Item",null,{"$f":"SUM(J181:J182)","v":0}]
[null,null,null,null,null,"Valor Total Rua Porto Alegre",null,null,null,{"$f":"J183+J179+J171+J163+J155","v":0}]
[]
[null,"5.0 - RUA JOSÉ BONIFÁCIO ",null,null,null,null,"Área de Pavimentação (m²)",null,null,1628.55]
[null,"ITEM","REFERÊNCIA SINAPI","DESCRIÇÃO","UNID.","QUANT.","PREÇO UNIT.","BDI ADOTADO","PREÇO UNIT. C/ BDI","PREÇO TOTAL"]
[null,"5.1","RECAPEAMENTO PAVIMENTAÇÃO EXISTENTE"]
[null,"5.1.1","CPU 10","LIMPEZA, VARIÇÃO E LAVAGEM DA PISTA","M²",1628.55,null,{"$f":"$J$5","v":0.23649999999999999},{"$f":"G189+G189*H189","v":0},{"$f":"ROUND(F189*I189,2)","v":0}]
[null,"5.1.2","CPU 08","PINTURA DE LIGAÇÃO COM EMULSÃO RR-2C - INCLUSIVE TRANSPORTE DA EMULSÃO","M2",1628.55,null,0.23649999999999999,0,0]
[null,"5.1.3","CPU 09","EXECUÇÃO DE PAVIMENTO COM APLICAÇÃO DE CONCRETO ASFALTICO - CBUQ - CAMADA DE ROLAMENTO - EXCLUSIVE CARGA E TRANSPORTE","M³",65.141999999999996,null,0.23649999999999999,0,0]
[null,"5.1.4",100986,"CARGA DE MISTURA ASFÁLTICA EM CAMINHÃO BASCULANTE 10 M³ (UNIDADE: M3). AF_07/2020","M3",84.684600000000003,null,0.23649999999999999,0,0]
[null,"5.1.5",95875,"TRANSPORTE COM CAMINHÃO BASCULANTE DE 10 M³, EM VIA URBANA PAVIMENTADA, DMT ATÉ 30 KM (UNIDADE: M3XKM). AF_07/2020","M3XKM",1693.692,null,0.23649999999999999,0,0]
[null,null,null,null,null,null,null,"Total Item",null,{"$f":"SUM(J189:J193)","v":0}]
[]
[]
[null,"5.2","SINALIZAÇÃO HORIZONTAL"]
[null,"5.2.1",102512,"PINTURA DE EIXO VIÁRIO SOBRE ASFALTO COM TINTA RETRORREFLETIVA A BASE DE RESINA ACRÍLICA COM MICROESFERAS DE VIDRO, APLICAÇÃO MECÂNICA COM DEMARCADORA AUTOPROPELIDA. AF_05/2021","M",99,null,{"$f":"$J$5","v":0.23649999999999999},{"$f":"G198+G198*H198","v":0},{"$f":"ROUND(F198*I198,2)","v":0}]
[null,"5.2.2",102512,"PINTURA DE EIXO VIÁRIO SOBRE ASFALTO COM TINTA RETRORREFLETIVA A BASE DE RESINA ACRÍLICA COM MICROESFERAS DE VIDRO, APLICAÇÃO MECÂNICA COM DEMARCADORA AUTOPROPELIDA. AF_05/2021","M",178,null,0.23649999999999999,0,0]
[null,"5.2.3",102509,"PINTURA DE FAIXA DE PEDESTRE OU ZEBRADA TINTA RETRORREFLETIVA A BASE DE RESINA ACRÍLICA COM MICROESFERAS DE VIDRO, E = 30 CM, APLICAÇÃO MANUAL. AF_05/2021","M2",56.1,null,0.23649999999999999,0,0]
[null,"5.2.4",102509,"PINTURA DE FAIXA DE PEDESTRE OU ZEBRADA TINTA RETRORREFLETIVA A BASE DE RESINA ACRÍLICA COM MICROESFERAS DE VIDRO, E = 30 CM, APLICAÇÃO MANUAL. AF_05/2021","M2",23,null,0.23649999999999999,0,0]
[null,null,null,null,null,null,null,"Total Item",null,{"$f":"SUM(J198:J201)","v":0}]
[]
[null,"5.3","SERVIÇOS FINAIS"]
[null,"5.3.1","CPU 11","LIMPEZA FINAL DE OBRA","M³",1628.55,null,{"$f":"$J$5","v":0.23649999999999999},{"$f":"G205+G205*H205","v":0},{"$f":"ROUND(F205*I205,2)","v":0}]
[null,null,null,null,null,null,null,"Total Item",null,{"$f":"SUM(J204:J205)","v":0}]
[null,null,null,null,null,"Valor Total Rua José Bonifácio",null,null,null,{"$f":"J206+J202+J194","v":0}]
[]
[null,"6.0 - PAVIMENTAÇÃO DA RUA BELA VISTA",null,null,null,null,"Área de Pavimentação (m²)",null,null,2718.3]
[null,"ITEM","REFERÊNCIA SINAPI","DESCRIÇÃO","UNID.","QUANT.","PREÇO UNIT.","BDI ADOTADO","PREÇO UNIT. C/ BDI","PREÇO TOTAL"]
[null,"6.1","EXECUÇÃO DE CAMADA DE REPERFILAMENTO"]
[null,"6.1.1","CPU 10","LIMPEZA, VARIÇÃO E LAVAGEM DA PISTA","M²",2718.3,null,{"$f":"$J$5","v":0.23649999999999999},{"$f":"G212+G212*H212","v":0},{"$f":"ROUND(F212*I212,2)","v":0}]
[null,"6.1.2","CPU 08","PINTURA DE LIGAÇÃO COM EMULSÃO RR-2C - INCLUSIVE TRANSPORTE DA EMULSÃO","M2",2718.3,null,0.23649999999999999,0,0]
[null,"6.1.3","CPU 12","EXECUÇÃO DE PAVIMENTO COM APLICAÇÃO DE CONCRETO ASFALTICO - BINDER, CAMADA DE REPERFILAMENTO - EXCLUSIVE CARGA E TRANSPORTE","M³",135.91499999999999,null,0.23649999999999999,0,0]
[null,"6.1.4",100986,"CARGA DE MISTURA ASFÁLTICA EM CAMINHÃO BASCULANTE 10 M³ (UNIDADE: M3). AF_07/2020","M3",176.68950000000001,null,0.23649999999999999,0,0]
[null,"6.1.5",95875,"TRANSPORTE COM CAMINHÃO BASCULANTE DE 10 M³, EM VIA URBANA PAVIMENTADA, DMT ATÉ 30 KM (UNIDADE: M3XKM). AF_07/2020","M3XKM",3533.79,null,0.23649999999999999,0,0]
[null,null,null,null,null,null,null,"Total Item",null,{"$f":"SUM(J212:J216)","v":0}]
[]
[]
[null,"6.2","EXECUÇÃO DE CAMADA FINAL DE ROLAMENTO"]
[null,"6.2.1","CPU 08","PINTURA DE LIGAÇÃO COM EMULSÃO RR-2C - INCLUSIVE TRANSPORTE DA EMULSÃO","M2",2718.3,null,{"$f":"$J$5","v":0.23649999999999999},{"$f":"G221+G221*H221","v":0},{"$f":"ROUND(F221*I221,2)","v":0}]
[null,"6.2.2","CPU 09","EXECUÇÃO DE PAVIMENTO COM APLICAÇÃO DE CONCRETO ASFALTICO - CBUQ - CAMADA DE ROLAMENTO - EXCLUSIVE CARGA E TRANSPORTE","M³",81.549000000000007,null,0.23649999999999999,0,0]
[null,"6.2.3",100986,"CARGA DE MISTURA ASFÁLTICA EM CAMINHÃO BASCULANTE 10 M³ (UNIDADE: M3). AF_07/2020","M3",106.01370000000001,null,0.23649999999999999,0,0]
[null,"6.2.4",95875,"TRANSPORTE COM CAMINHÃO BASCULANTE DE 10 M³, EM VIA URBANA PAVIMENTADA, DMT ATÉ 30 KM (UNIDADE: M3XKM). AF_07/2020","M3XKM",2120.2740000000003,null,0.23649999999999999,0,0]
[null,null,null,null,null,null,null,"Total Item",null,{"$f":"SUM(J221:J224)","v":0}]
[]
[null,"6.3","SINALIZAÇÃO HORIZONTAL"]
[null,"6.3.1",102512,"PINTURA DE EIXO VIÁRIO SOBRE ASFALTO COM TINTA RETRORREFLETIVA A BASE DE RESINA ACRÍLICA COM MICROESFERAS DE VIDRO, APLICAÇÃO MECÂNICA COM DEMARCADORA AUTOPROPELIDA. AF_05/2021","M",201,null,{"$f":"$J$5","v":0.23649999999999999},{"$f":"G228+G228*H228","v":0},{"$f":"ROUND(F228*I228,2)","v":0}]
[null,"6.3.2",102512,"PINTURA DE EIXO VIÁRIO SOBRE ASFALTO COM TINTA RETRORREFLETIVA A BASE DE RESINA ACRÍLICA COM MICROESFERAS DE VIDRO, APLICAÇÃO MECÂNICA COM DEMARCADORA AUTOPROPELIDA. AF_05/2021","M",404,null,0.23649999999999999,{"$f":"G229+G229*H229","v":0},{"$f":"ROUND(F229*I229,2)","v":0}]
[null,"6.3.3",102509,"PINTURA DE FAIXA DE PEDESTRE OU ZEBRADA TINTA RETRORREFLETIVA A BASE DE RESINA ACRÍLICA COM MICROESFERAS DE VIDRO, E = 30 CM, APLICAÇÃO MANUAL. AF_05/2021","M2",16.75,null,0.23649999999999999,0,0]
[null,null,null,null,null,null,null,"Total Item",null,{"$f":"SUM(J228:J230)","v":0}]
[]
[null,"6.4","SERVIÇOS FINAIS"]
[null,"6.4.1","CPU 11","LIMPEZA FINAL DE OBRA","M³",2718.3,null,{"$f":"$J$5","v":0.23649999999999999},{"$f":"G234+G234*H234","v":0},{"$f":"ROUND(F234*I234,2)","v":0}]
[null,null,null,null,null,null,null,"Total Item",null,{"$f":"SUM(J233:J234)","v":0}]
[null,null,null,null,null,"Valor Total Rua Bela Vista",null,null,null,{"$f":"J235+J231+J225+J217","v":0}]
[]
[null,7,"SERVIÇOS FINAIS OBRA - GERAL"]
[null,"7.1","CPU 02","MOBILIZAÇÃO  DE EQUIPAMENTOS PARA PAVIMENTAÇÃO ASFÁLTICA","Obra",1,null,{"$f":"$J$5","v":0.23649999999999999},{"$f":"G239+G239*H239","v":0},{"$f":"ROUND(F239*I239,2)","v":0}]
[null,null,null,null,null,null,null,"Total Item",null,{"$f":"SUM(J238:J239)","v":0}]
[]
[]
[]
[]
[null,null,null,null,"Valor total do Orçamento",null,null,null,{"$f":"J17+J82+J112+J140+J184+J207+J236+J240","v":0}]
[]
[]
[]
[]
[null,null,"Local, data, assinaturas"]

{"sheet":"Cronograma","index":1,"n_rows":36,"n_cols":8,"rows_kept":36,"cut":false,"hidden":false,"merged":[[22,6,23,6],[22,7,23,7],[24,6,25,6],[24,7,25,7],[26,6,27,6],[26,7,27,7],[22,2,23,2],[24,0,25,0],[24,1,25,1],[24,2,25,2],[9,6,9,7],[10,6,10,7],[12,6,13,6],[12,7,13,7],[14,6,15,6],[14,7,15,7],[16,6,17,6],[16,7,17,7],[18,6,19,6],[18,7,19,7],[20,6,21,6],[20,7,21,7],[2,0,2,4],[5,0,5,2],[8,0,8,4],[10,0,11,0],[10,1,11,1],[10,2,11,2],[12,0,13,0],[12,1,13,1],[12,2,13,2],[14,0,15,0],[14,1,15,1],[14,2,15,2],[28,0,31,1],[28,2,31,2],[16,0,17,0],[16,1,17,1],[16,2,17,2],[26,0,27,0],[26,1,27,1],[26,2,27,2],[20,1,21,1],[20,0,21,0],[20,2,21,2],[18,0,19,0],[18,1,19,1],[18,2,19,2],[22,0,23,0],[22,1,23,1]]}
[]
[]
["CRONOGRAMA FÍSICO / FINANCEIRO"]
[]
[]
["OBRA: EXECUÇÃO  DE PAVIMENTAÇÃO ASFALTICA EM VIAS URBANAS"]
["LOCAL: MUNICÍPIO DE BARÃO DE COTEGIPE"]
[]
["CRONOGRAMA FÍSICO-FINANCEIRO"]
[]
["ITEM","DESCRIÇÃO","TOTAL","MÊS 1","MÊS 2","MÊS 3","Totais"]
[null,null,null,"%","%","%","%","Valor"]
[1,"SERVIÇOS INCIIAIS E PRELIMINARES",{"$f":"'Orçamento Básico'!J17","v":0},0.3,0.4,0.3,{"$f":"F13+E13+D13","v":1},{"$f":"F14+E14+D14","v":0}]
[null,null,null,{"$f":"$C13*D13","v":0},{"$f":"$C13*E13","v":0},{"$f":"$C13*F13","v":0}]
[2,"PAVIMENTAÇÃO DA RUA AUGUSTO BERTON",{"$f":"'Orçamento Básico'!J82","v":0},0.6,0.4,null,{"$f":"F15+E15+D15","v":1},{"$f":"F16+E16+D16","v":0}]
[null,null,null,{"$f":"$C15*D15","v":0},{"$f":"$C15*E15","v":0},{"$f":"$C15*F15","v":0}]
[3,"PAVIMENTAÇÃO DA RUA CASEMIRO DE ABREU",{"$f":"'Orçamento Básico'!J112","v":0},null,1,null,{"$f":"F17+E17+D17","v":1},{"$f":"F18+E18+D18","v":0}]
[null,null,null,{"$f":"$C17*D17","v":0},{"$f":"$C17*E17","v":0},{"$f":"$C17*F17","v":0}]
[3,"PAVIMENTAÇÃO DA RUA SANTINA LONGO",{"$f":"'Orçamento Básico'!J140","v":0},null,1,null,{"$f":"F19+E19+D19","v":1},{"$f":"F20+E20+D20","v":0}]
[null,null,null,{"$f":"$C19*D19","v":0},{"$f":"$C19*E19","v":0},{"$f":"$C19*F19","v":0}]
[4,"PAVIMENTAÇÃO DA RUA PORTO ALEGRE",{"$f":"'Orçamento Básico'!J184","v":0},0.1,null,0.9,{"$f":"F21+E21+D21","v":1},{"$f":"F22+E22+D22","v":0}]
[null,null,null,{"$f":"$C21*D21","v":0},{"$f":"$C21*E21","v":0},{"$f":"$C21*F21","v":0}]
[5,"PAVIMENTAÇÃO DA RUA JOSÉ BONIFÁCIO",{"$f":"'Orçamento Básico'!J207","v":0},null,null,1,{"$f":"F23+E23+D23","v":1},{"$f":"F24+E24+D24","v":0}]
[null,null,null,{"$f":"$C23*D23","v":0},{"$f":"$C23*E23","v":0},{"$f":"$C23*F23","v":0}]
[6,"PAVIMENTAÇÃO DA RUA BELA VISTA",{"$f":"'Orçamento Básico'!J236","v":0},null,1,null,{"$f":"F25+E25+D25","v":1},{"$f":"F26+E26+D26","v":0}]
[null,null,null,{"$f":"$C25*D25","v":0},{"$f":"$C25*E25","v":0},{"$f":"$C25*F25","v":0}]
[7,"SERVIÇOS FINAIS - DESMOBILIZAÇÃO",{"$f":"'Orçamento Básico'!J240","v":0},null,null,1,{"$f":"F27+E27+D27","v":1},{"$f":"F28+E28+D28","v":0}]
[null,null,null,{"$f":"$C27*D27","v":0},{"$f":"$C27*E27","v":0},{"$f":"$C27*F27","v":0}]
["TOTAL",null,{"$f":"SUM(C13:C28)","v":0},{"$f":"D14+D16+D18+D20+D22+D24+D26+D28","v":0},{"$f":"E14+E16+E18+E20+E22+E24+E26+E28","v":0},{"$f":"F14+F16+F18+F20+F22+F24+F26+F28","v":0},null,{"$f":"SUM(H13:H27)","v":0}]
[null,null,null,{"$f":"D29/$C$29","v":{"$error":"#DIV/0!"}},{"$f":"E29/$C$29","v":{"$error":"#DIV/0!"}},{"$f":"F29/$C$29","v":{"$error":"#DIV/0!"}}]
[null,null,null,{"$f":"D29","v":0},{"$f":"E29+D31","v":0},{"$f":"F29+E31","v":0}]
[null,null,null,{"$f":"+D30","v":{"$error":"#DIV/0!"}},{"$f":"E30+D32","v":{"$error":"#DIV/0!"}},{"$f":"F30+E32","v":{"$error":"#DIV/0!"}}]
[]
[]
[]
[null,"Local, data, assinaturas"]

{"sheet":"BDI","index":2,"n_rows":52,"n_cols":35,"rows_kept":52,"cut":false,"hidden":false,"merged":[[2,2,2,13],[6,1,7,13],[8,1,10,4],[8,5,10,7],[8,8,8,13],[9,8,27,13],[11,1,14,4],[11,5,14,7],[15,1,20,4],[15,5,29,7],[21,1,29,4],[28,8,28,13],[29,8,34,13],[30,1,30,4],[30,6,30,7],[31,1,31,4],[31,5,32,5],[31,6,32,7],[33,1,33,4],[33,5,34,5],[33,6,34,7],[35,1,35,4],[35,5,36,5],[35,6,36,7],[35,8,38,13],[37,1,37,4],[37,5,38,5],[37,6,38,7],[39,8,44,13],[41,1,41,4],[41,6,41,7],[42,1,42,4],[42,6,42,7],[43,1,43,4],[43,6,43,7],[44,1,44,4],[44,6,44,7],[49,2,49,6],[50,2,50,7],[39,1,39,4],[39,5,40,5],[39,6,40,7]]}
[]
[]
[null,null,"QUADRO DE COMPOSIÇÃO DO BDI "]
[]
[null,"Obra: Pavimentação de vias urbanas - Município de Barão de Cotegipe/RS"]
[]
[null,"Em atenção ao estabelecido pelo Acórdão 2622/2013 – TCU – Plenário reformamos a orientação e indicamos a utilização dos seguintes parâmetros para taxas de BDI:"]
[]
[null,"Tipo de obra:",null,null,null,"Construção de Rodovias e Ferrovias",null,null,"Obras que se enquadram no tipo escolhido:",null,null,null,null,null,null,null,"Selecione o CPRB"]
[null,null,null,null,null,null,null,null,{"$f":"IF(F9=S15,S22,IF(F9=S16,S23,IF(F9=S17,S24,IF(F9=S18,S25,IF(F9=S19,S26,IF(F9=S20,S27,\"\"))))))","v":"Para o tipo de obra “Construção de Rodovias e Ferrovias” enquadram-se: a construção e recuperação de: auto-estradas, rodovias e outras vias não-urbanas para passagem de veículos, vias férreas de superfície ou subterrâneas (inclusive para metropolitanos), pistas de aeroportos. Esta classe compreende também: a pavimentação de auto-estradas, rodovias e outras vias não-urbanas; construção de pontes, viadutos e túneis; a instalação de barreiras acústicas; a construção de praças de pedágio; a sinalização com pintura em rodovias e aeroportos; a instalação de placas de sinalização de tráfego e semelhantes, conforme classificação 4211-1 do CNAE 2.0. Também enquadram-se a construção, pavimentação e sinalização de vias urbanas, ruas e locais para estacionamento de veículos; a construção de praças e calçadas para pedestres; elevados, passarelas e ciclovias; metrô e VLT."},null,null,null,null,null,null,null,"Desonerado"]
[null,null,null,null,null,null,null,null,null,null,null,null,null,null,null,null,"Onerado",null,"Escolha o tipo de obra"]
[null,"Alternativa mais adequada para a Administração Pública:",null,null,null,"Onerado",null,null,null,null,null,null,null,null,null,null,null,null,"Construção de edifícios"]
[null,null,null,null,null,null,null,null,null,null,null,null,null,null,null,null,null,null,"Construção de edifícios"]
[null,null,null,null,null,null,null,null,null,null,null,null,null,null,null,null,null,null,"Escolha o tipo de obra"]
[null,null,null,null,null,null,null,null,null,null,null,null,null,null,null,null,null,null,"Construção de edifícios"]
[null,{"$f":"IF(F16=\"OK\",\"BDI ABAIXO PODE SER ACEITO\",\"\")","v":"BDI ABAIXO PODE SER ACEITO"},null,null,null,{"$f":"IF(AD31=FALSE,\"\",IF(G32=\"FORA DO LIMITE\",\"VERIFICAR ITENS\",IF(G34=\"FORA DO LIMITE\",\"VERIFICAR ITENS\",IF(G36=\"FORA DO LIMITE\",\"VERIFICAR ITENS\",IF(G38=\"FORA DO LIMITE\",\"VERIFICAR ITENS\",IF(G40=\"FORA DO LIMITE\",\"VERIFICAR ITENS\",IF(Z30<W30,\"FORA DA FAIXA\",IF(Z30>X30,\"FORA DA FAIXA\",\"OK\"))))))))","v":"OK"},null,null,null,null,null,null,null,null,null,null,null,null,"Construção de Rodovias e Ferrovias"]
[null,null,null,null,null,null,null,null,null,null,null,null,null,null,null,null,null,null,"Construção de Redes de Abastecimento de Água, Coleta de Esgoto e Construções Correlatas"]
[null,null,null,null,null,null,null,null,null,null,null,null,null,null,null,null,null,null,"Construção e Manutenção de Estações e Redes de Distribuição de Energia Elétrica"]
[null,null,null,null,null,null,null,null,null,null,null,null,null,null,null,null,null,null,"Obras Portuárias, Marítimas e Fluviais"]
[null,null,null,null,null,null,null,null,null,null,null,null,null,null,null,null,null,null,"Fornecimento de Materiais e Equipamentos",null,null,null,null,"Obras que se enquadram no tipo escolhido:"]
[]
[null,{"$f":"IF(Z31=FALSE,IF(F9=\"Escolha o tipo de obra\",\"Escolha o tipo de obra\",IF(F12=\"ONERADO\",Z30,IF(F12=\"DESONERADO\",AB30,\"Escolha o regime de contribuição\"))),\"PREENCHER TODOS OS COMPONENTES DO BDI\")","v":0.23649999999999999},null,null,null,null,null,null,null,null,null,null,null,null,null,null,null,null,"Para o tipo de obra “Construção de Edifícios” enquadram-se: a construção e reforma de: edifícios, unidades habitacionais, escolas, hospitais, hotéis, restaurantes, armazéns e depósitos, edifícios para uso agropecuário, estações para trens e metropolitanos, estádios esportivos e quadras cobertas, instalações para embarque e desembarque de passageiros (em aeroportos, rodoviárias, portos, etc.), penitenciárias e presídios, a construção de edifícios industriais (fábricas, oficinas, galpões industriais, etc.), conforme classificação 4120-4 do CNAE 2.0. Também enquadram-se pórticos, mirantes e outros edifícios de finalidade turística."]
[null,null,null,null,null,null,null,null,null,null,null,null,null,null,null,null,null,null,"Para o tipo de obra “Construção de Rodovias e Ferrovias” enquadram-se: a construção e recuperação de: auto-estradas, rodovias e outras vias não-urbanas para passagem de veículos, vias férreas de superfície ou subterrâneas (inclusive para metropolitanos), pistas de aeroportos. Esta classe compreende também: a pavimentação de auto-estradas, rodovias e outras vias não-urbanas; construção de pontes, viadutos e túneis; a instalação de barreiras acústicas; a construção de praças de pedágio; a sinalização com pintura em rodovias e aeroportos; a instalação de placas de sinalização de tráfego e semelhantes, conforme classificação 4211-1 do CNAE 2.0. Também enquadram-se a construção, pavimentação e sinalização de vias urbanas, ruas e locais para estacionamento de veículos; a construção de praças e calçadas para pedestres; elevados, passarelas e ciclovias; metrô e VLT."]
[null,null,null,null,null,null,null,null,null,null,null,null,null,null,null,null,null,null,"Para o tipo de obra “Construção de Redes de Abastecimento de Água, Coleta de Esgoto e Construções Correlatas” enquadram-se: a construção de sistemas para o abastecimento de água tratada: reservatórios de distribuição, estações elevatórias de bombeamento, linhas principais de adução de longa e média distância e redes de distribuição de água; a construção de redes de coleta de esgoto, inclusive de interceptores, estações de tratamento de esgoto (ETE), estações de bombeamento de esgoto (EBE); a construção de galerias pluviais (obras de micro e macro drenagem). Esta classe compreende também: as obras de irrigação (canais); a manutenção de redes de abastecimento de água tratada; a manutenção de redes de coleta e de sistemas de tratamento de esgoto, conforme classificação 4222-7 do CNAE 2.0. Enquadra-se ainda a construção de estações de tratamento de água (ETA)."]
[null,null,null,null,null,null,null,null,null,null,null,null,null,null,null,null,null,null,"Para o tipo de obra “Construção e Manutenção de Estações e Redes de Distribuição de Energia Elétrica” enquadram-se: a construção de usinas, estações e subestações hidrelétricas, eólicas, nucleares, termoelétricas; a construção de redes de transmissão e distribuição de energia elétrica, inclusive o serviço de eletrificação rural. Esta subclasse compreende também: a construção de redes de eletrificação para ferrovias e metropolitano, conforme classificação 4221-9/02 do CNAE 2.0. Compreende ainda: a manutenção de redes de distribuição de energia elétrica, quando executada por empresa não-produtora ou distribuidora de energia elétrica, conforme classificação 4221-9/03 do CNAE 2.0. Enquadram-se também obras de iluminação pública e a construção de barragens e represas para geração de energia elétrica."]
[null,null,null,null,null,null,null,null,null,null,null,null,null,null,null,null,null,null,"Para o tipo de obra “Portuárias, Marítimas e Fluviais” enquadram-se: as obras marítimas e fluviais, tais como, construção de instalações portuárias; construção de portos e marinas; construção de eclusas e canais de navegação (vias navegáveis); enrocamentos; obras de dragagem; aterro hidráulico; barragens, represas e diques, exceto para energia elétrica; a construção de emissários submarinos; a instalação de cabos submarinos, conforme classificação 4291-0 do CNAE 2.0. Enquadram-se também a construção de piers e outras obras com influência direta de cursos d’água. "]
[null,null,null,null,null,null,null,null,null,null,null,null,null,null,null,null,null,null,"Enquadram-se como “Fornecimento de Materiais e Equipamentos”, conforme tabela apresentada no item 1 desta CE, especificamente o fornecimento de materiais e equipamentos relevantes de natureza específica, como é o caso de: - materiais betuminosos para obras rodoviárias; - tubos de ferro fundido ou PVC para obras de abastecimento de água; - elevadores e escadas rolantes para obras aeroportuárias. Comprovada a inviabilidade técnico-econômica de parcelamento do objeto da licitação, os itens de fornecimento de materiais e equipamentos relevantes de natureza específica, que possam ser fornecidos por empresas com especialidades próprias e diversas e que representem percentual significativo do preço global da obra devem apresentar incidência de taxa de BDI reduzida em relação à taxa aplicável aos demais itens da obra."]
[]
[null,null,null,null,null,null,null,null,"OBSERVAÇÕES",null,null,null,null,null,null,null,null,null,"Escolha o regime de contribuição",null,null,null,"Mín","Máx",null,"Cálculo s/ os 2%",null,"Cálculo c/ os desonerado"]
[null,null,null,null,null,null,null,null,"Os percentuais de Impostos a serem adotados devem ser indicados pelo Tomador, conforme legislação vigente. Apresentar declaração informando o percentual de ISS incidente sobre esta obra, considerando a base de cálculo prevista na legislação municipal.",null,null,null,null,null,null,null,null,null,"SEM DESONERAÇÃO",null,null,null,{"$f":"IF($F$9=$S$15,T32,IF($F$9=$S$16,X32,IF($F$9=$S$17,AB32,IF($F$9=$S$18,T38,IF($F$9=$S$19,X38,IF($F$9=$S$20,AB38))))))","v":0.19600000000000001},{"$f":"IF($F$9=$S$15,U32,IF($F$9=$S$16,Y32,IF($F$9=$S$17,AC32,IF($F$9=$S$18,U38,IF($F$9=$S$19,Y38,IF($F$9=$S$20,AC38))))))","v":0.24229999999999999},{"$f":"IF(F12=\"DESONERADO\",AB30,IF(F12=\"SEM DESONERAÇÃO\",Z30,\"\"))","v":""},{"$f":"TRUNC(ROUND(((1+F32+F34+F36)*(1+F38)*(1+F40))/(1-(F42+F43+F44))-1,4),4)","v":0.23649999999999999},null,{"$f":"TRUNC(ROUND(((1+F32+F34+F36)*(1+F38)*(1+F40))/(1-(F42+F43+F44+F45))-1,4),4)","v":0.23649999999999999}]
[null,"Parâmetro",null,null,null,"%","Verificação",null,null,null,null,null,null,null,null,null,null,null,"DESONERADO",null,null,null,"Falta preencher algum item do BDI:",null,null,{"$f":"IF(F12=\"DESONERADO\",OR(F32=\"\",F34=\"\",F36=\"\",F38=\"\",F40=\"\",F42=\"\",F43=\"\",F44=\"\",F45=\"\"),OR(F32=\"\",F34=\"\",F36=\"\",F38=\"\",F40=\"\",F42=\"\",F43=\"\",F44=\"\"))","v":false},{"$f":"IF(F12=\"SEM DESONERAÇÃO\",AND(F32=\"\",F34=\"\",F36=\"\",F38=\"\",F40=\"\",F42=\"\",F43=\"\",F44=\"\"))","v":false},null,{"$f":"IF(F12=\"SEM DESONERAÇÃO\",AND(F32=\"\",F34=\"\",F36=\"\",F38=\"\",F40=\"\",F42=\"\",F43=\"\",F44=\"\"),IF(F12=\"DESONERADO\",AND(F32=\"\",F34=\"\",F36=\"\",F38=\"\",F40=\"\",F42=\"\",F43=\"\",F44=\"\",F45=\"\"),\"NULO\"))","v":"NULO"},{"$f":"OR(B22=Z30,B22=AB30)","v":true}]
[null,"Administração Central",null,null,null,4.4999999999999998E-2,{"$f":"IF(F9=\"Escolha o tipo de obra\",\"\",IF(F32=\"\",\"\",IF(F32<C33,\"FORA DO LIMITE\",IF(F32>E33,\"FORA DO LIMITE\",\"OK\"))))","v":"OK"},null,null,null,null,null,null,null,null,null,null,null,"Edifícios",0.2034,0.25,null,"Rodovias",0.19600000000000001,0.24229999999999999,null,"Redes",0.20760000000000001,0.26440000000000002]
[null,"Mín:",{"$f":"IF($F$9=$S$15,S33,IF($F$9=$S$16,W33,IF($F$9=$S$17,AA33,IF($F$9=$S$18,S39,IF($F$9=$S$19,W39,IF($F$9=$S$20,AA39,\"\"))))))","v":3.7999999999999999E-2},"Máx:",{"$f":"IF($F$9=$S$15,T33,IF($F$9=$S$16,X33,IF($F$9=$S$17,AB33,IF($F$9=$S$18,T39,IF($F$9=$S$19,X39,IF($F$9=$S$20,AB39,\"\"))))))","v":4.6699999999999998E-2},null,null,null,null,null,null,null,null,null,null,null,{"$f":"IF(#REF!=\"\",\"\",#REF!)","v":{"$error":"#REF!"}},null,0.03,5.5E-2,null,null,3.7999999999999999E-2,4.6699999999999998E-2,null,null,3.4299999999999997E-2,6.7100000000000007E-2,null,null,null,null,null,0.2034,0.25]
[null,"Seguros e Garantias",null,null,null,5.0000000000000001E-3,{"$f":"IF(F9=\"Escolha o tipo de obra\",\"\",IF(F34=\"\",\"\",IF(F34<C35,\"FORA DO LIMITE\",IF(F34>E35,\"FORA DO LIMITE\",\"OK\"))))","v":"OK"},null,null,null,null,null,null,null,null,null,{"$f":"TODAY()","v":"2024-07-12"},null,8.0000000000000002E-3,0.01,null,null,3.2000000000000002E-3,7.4000000000000003E-3,null,null,2.8E-3,7.4999999999999997E-3,null,null,null,null,null,0.19600000000000001,0.24229999999999999]
[null,"Mín:",{"$f":"IF($F$9=$S$15,S34,IF($F$9=$S$16,W34,IF($F$9=$S$17,AA34,IF($F$9=$S$18,S40,IF($F$9=$S$19,W40,IF($F$9=$S$20,AA40,\"\"))))))","v":3.2000000000000002E-3},"Máx:",{"$f":"IF($F$9=$S$15,T34,IF($F$9=$S$16,X34,IF($F$9=$S$17,AB34,IF($F$9=$S$18,T40,IF($F$9=$S$19,X40,IF($F$9=$S$20,AB40,\"\"))))))","v":7.4000000000000003E-3},null,null,null,null,null,null,null,null,null,null,null,null,null,9.7000000000000003E-3,1.2699999999999999E-2,null,null,5.0000000000000001E-3,9.7000000000000003E-3,null,null,0.01,1.7399999999999999E-2,null,null,null,null,null,0.20760000000000001,0.26440000000000002]
[null,"Riscos",null,null,null,7.0000000000000001E-3,{"$f":"IF(F9=\"Escolha o tipo de obra\",\"\",IF(F36=\"\",\"\",IF(F36<C37,\"FORA DO LIMITE\",IF(F36>E37,\"FORA DO LIMITE\",\"OK\"))))","v":"OK"},null,"As tabelas que apresentam os limites foram construídas sem considerar a desoneração sobre a folha de pagamento prevista na Lei n° 12.844/2013. Caso o CNAE da empresa indique que a mesma deve considerar a contribuição previdenciária sobre a receita bruta, será somada a alíquota de 2% no item impostos.",null,null,null,null,null,null,null,null,null,5.8999999999999999E-3,1.3899999999999999E-2,null,null,1.0200000000000001E-2,1.21E-2,null,null,9.4000000000000004E-3,1.17E-2,null,null,null,null,null,0.24,0.27860000000000001]
[null,"Mín:",{"$f":"IF($F$9=$S$15,S35,IF($F$9=$S$16,W35,IF($F$9=$S$17,AA35,IF($F$9=$S$18,S41,IF($F$9=$S$19,W41,IF($F$9=$S$20,AA41,\"\"))))))","v":5.0000000000000001E-3},"Máx:",{"$f":"IF($F$9=$S$15,T35,IF($F$9=$S$16,X35,IF($F$9=$S$17,AB35,IF($F$9=$S$18,T41,IF($F$9=$S$19,X41,IF($F$9=$S$20,AB41,\"\"))))))","v":9.7000000000000003E-3},null,null,null,null,null,null,null,null,null,null,null,null,null,6.1600000000000002E-2,8.9599999999999999E-2,null,null,6.6400000000000001E-2,8.6900000000000005E-2,null,null,6.7400000000000002E-2,9.4E-2,null,null,null,null,null,0.22800000000000001,0.3095]
[null,"Despesas Financeiras",null,null,null,1.11E-2,{"$f":"IF(F9=\"Escolha o tipo de obra\",\"\",IF(F38=\"\",\"\",IF(F38<C39,\"FORA DO LIMITE\",IF(F38>E39,\"FORA DO LIMITE\",\"OK\"))))","v":"OK"},null,null,null,null,null,null,null,null,null,null,null,"Elétrica",0.24,0.27860000000000001,null,"Portos",0.22800000000000001,0.3095,null,"Equipamentos",0.111,0.16800000000000001,null,null,null,null,0.111,0.16800000000000001]
[null,"Mín:",{"$f":"IF($F$9=$S$15,S36,IF($F$9=$S$16,W36,IF($F$9=$S$17,AA36,IF($F$9=$S$18,S42,IF($F$9=$S$19,W42,IF($F$9=$S$20,AA42,\"\"))))))","v":1.0200000000000001E-2},"Máx:",{"$f":"IF($F$9=$S$15,T36,IF($F$9=$S$16,X36,IF($F$9=$S$17,AB36,IF($F$9=$S$18,T42,IF($F$9=$S$19,X42,IF($F$9=$S$20,AB42,\"\"))))))","v":1.21E-2},null,null,null,null,null,null,null,null,null,null,null,null,null,5.2900000000000003E-2,7.9299999999999995E-2,null,null,0.04,7.85E-2,null,null,1.4999999999999999E-2,4.4900000000000002E-2]
[null,"Lucro",null,null,null,0.08,{"$f":"IF(F9=\"Escolha o tipo de obra\",\"\",IF(F40=\"\",\"\",IF(F40<C41,\"FORA DO LIMITE\",IF(F40>E41,\"FORA DO LIMITE\",\"OK\"))))","v":"OK"},null,null,null,null,null,null,null,null,null,null,null,2.5000000000000001E-3,5.5999999999999999E-3,null,null,8.0999999999999996E-3,1.9900000000000001E-2,null,null,3.0000000000000001E-3,8.2000000000000007E-3]
[null,"Mín:",{"$f":"IF($F$9=$S$15,S37,IF($F$9=$S$16,W37,IF($F$9=$S$17,AA37,IF($F$9=$S$18,S43,IF($F$9=$S$19,W43,IF($F$9=$S$20,AA43,\"\"))))))","v":6.6400000000000001E-2},"Máx:",{"$f":"IF($F$9=$S$15,T37,IF($F$9=$S$16,X37,IF($F$9=$S$17,AB37,IF($F$9=$S$18,T43,IF($F$9=$S$19,X43,IF($F$9=$S$20,AB43,\"\"))))))","v":8.6900000000000005E-2},null,null,null,null,null,null,null,null,null,null,null,null,null,0.01,1.9699999999999999E-2,null,null,1.46E-2,3.1600000000000003E-2,null,null,5.5999999999999999E-3,8.8999999999999999E-3]
[null,"Impostos: PIS",null,null,null,6.4999999999999997E-3,{"$f":"IF(F9=\"Escolha o tipo de obra\",\"\",IF(F42=\"\",\"\",IF(F42<>0.0065,\"Em geral deve ser 0,65%\",\"OK\")))","v":"OK"},null,null,null,null,null,null,null,null,null,null,null,1.01E-2,1.11E-2,null,null,9.4000000000000004E-3,1.3299999999999999E-2,null,null,8.5000000000000006E-3,1.11E-2]
[null,"Impostos: COFINS",null,null,null,0.03,{"$f":"IF(F9=\"Escolha o tipo de obra\",\"\",IF(F43=\"\",\"\",IF(F43<>0.03,\"Em geral deve ser 3,00%\",\"OK\")))","v":"OK"},null,null,null,null,null,null,null,null,null,null,null,0.08,9.5100000000000004E-2,null,null,7.1400000000000005E-2,0.1043,null,null,3.5000000000000003E-2,6.2199999999999998E-2]
[null,"Impostos: ISS (mun.)",null,null,null,0.03,{"$f":"IF(F9=\"Escolha o tipo de obra\",\"\",IF(F44=\"\",\"\",IF(F44>0.05,\"FORA DO LIMITE\",\"OK\")))","v":"OK"}]
[null,"Regime de desoneração (4,5%)",null,null,null,{"$f":"IF(F12=\"ONERADO\",0,IF(F12=\"DESONERADO\",0.045,\"\"))","v":0},{"$f":"IF(F12=\"Escolha o regime de contribuição\",\"\",IF(F12=\"DESONERADO\",\"OK\",IF(F12=\"ONERADO\",\"OK\")))","v":"OK"}]
[]
[]
[]
[]
[null,null,"Local, data, assianturas"]
[null,null,null,null,null,null,null,null,null,null,null,null,null,null,null,"Declaramos que será adotado o regime "]
[null,null,null,null,null,null,null,null,null,null,null,null,null,null,null," de tributação da folha de pagamento, para a elaboração do orçamento relativo às obras do presente contrato de repasse, por se tratar da opção mais adequada para a administração pública. "]